fUSD/lending_fUSD_20251023
["ID","MTS","AMOUNT","RATE_DAILY","PERIOD"]
[392126245,1761186632923,-163.82600256,0.00042969,10]
[392126246,1761186632932,-469.0,0.00043,90]
[392126247,1761186632941,-262.532654,0.00043,120]
[392126248,1761186632950,-469.0,0.00043014,90]
[392126249,1761186632960,-500.0,0.00043073,5]
[392126250,1761186632970,-504.3315783,0.00043073,10]
[392126251,1761186632979,-507.29949595,0.00043073,10]
[392126252,1761186632989,-1836.06,0.00043076,2]
[392126253,1761186632998,-1008.43,0.00043076,120]
[392126254,1761186633010,-2448.34,0.00043076,2]
[392126255,1761186633019,-411.04,0.00043076,2]
[392126256,1761186633029,-168.0,0.00043082,2]
[392126257,1761186633038,-155.95291562,0.0004322,2]
[392126258,1761186633047,-500.0,0.0004322,10]
[392126259,1761186633058,-150.0,0.0004322,10]
[392126260,1761186633068,-167.34509914,0.0004322,10]
[392126261,1761186633077,-150.0,0.0004322,10]
[392126262,1761186633087,-150.0,0.0004322,2]
[392126263,1761186633096,-500.0,0.0004322,10]
[392126264,1761186633106,-150.0,0.0004322,2]
[392126265,1761186633116,-1091.0,0.00043225,30]
[392126266,1761186633126,-788.48087069,0.00043234,30]
[392126267,1761186633136,-500.0,0.00043275,10]
[392126268,1761186633147,-150.0,0.00043275,10]
[392126269,1761186633157,-150.0,0.00043275,10]
[392126270,1761186633167,-500.0,0.00043275,10]
[392126271,1761186633176,-1844.15351119,0.00043322,15]
[392126272,1761186633186,-611.38765258,0.0004333,10]
[392126273,1761186633195,-200.0,0.0004333,10]
[392126274,1761186633204,-200.0,0.0004333,10]
[392126275,1761186633213,-215.10231735,0.0004333,10]
[392126276,1761186633223,-883.18123888,0.00043396,2]
[392126277,1761186633232,-175.89,0.00043411,30]
[392126278,1761186633242,-2426.64,0.00043421,2]
[392126279,1761186633251,-152.0,0.00043422,5]
[392126280,1761186633261,-1844.15351118,0.00043497,15]
[392126281,1761186633271,-166.66,0.00043507,30]
[392126282,1761186633280,-500.0,0.00043517,10]
[392126283,1761186633290,-156.76144982,0.00043517,10]
[392126284,1761186633300,-440.30816914,0.00043559,31]
[392126285,1761186633312,-59.69183086,0.00043559,31]
[392126286,1761186633321,-500.0,0.00043559,31]
[392126287,1761186633330,-1005.134,0.00043559,2]
[392126288,1761186633340,-9759.83386913,0.0004356,2]
[392126289,1761186633352,-24134.03455662,0.0004356,2]
[392126290,1761186633362,-198.05162,0.0004356,19]
[392126291,1761186633371,-1500.0,0.00043561,120]
[392126292,1761186633382,-541.15635511,0.00043561,120]
[392126293,1761186633401,-2317.1592,0.00043573,2]
[392126294,1761186633411,-883.18123889,0.00043579,2]
[392126295,1761186633422,-500.0,0.00043614,31]
[392126296,1761186633432,-500.0,0.00043614,31]
[392126297,1761186633443,-305.41001418,0.00043621,5]
[392126298,1761186633452,-408.71769931,0.00043669,31]
[392126299,1761186633462,-170.22039718,0.00043669,31]
[392126300,1761186633471,-151.0,0.0004367,120]
[392126301,1761186633480,-500.0,0.00043672,2]
[392126302,1761186633490,-1844.15351118,0.00043673,15]
[392126303,1761186633499,-177.9970465,0.00043673,30]
[392126304,1761186633510,-71266.5616627,0.00043673,2]
[392126305,1761186633521,-666.5712752,0.00043673,2]
[392126306,1761186633531,-879.676,0.00043689,2]
[392126307,1761186633541,-2593.0,0.00043689,2]
[392126308,1761186633553,-4220.587,0.00043689,2]
[392126309,1761186633563,-198.05163,0.0004373,20]
[392126310,1761186633573,-178.82,0.00043823,14]
[392126311,1761186633583,-500.0,0.00043835,120]
[392126312,1761186633593,-500.0,0.00043835,120]
[392126313,1761186633602,-302.44599326,0.00043835,120]
[392126314,1761186633612,-500.0,0.00043835,120]
[392126315,1761186633622,-500.0,0.00043835,120]
[392126316,1761186633631,-344.12992317,0.00043835,120]
[392126317,1761186633640,-500.0,0.00043835,120]
[392126318,1761186633650,-500.0,0.00043835,2]
[392126319,1761186633659,-265.49492712,0.00043835,120]
[392126320,1761186633670,-506.55563249,0.00043835,120]
[392126321,1761186633679,-1844.15351118,0.00043848,15]
[392126322,1761186633690,-1000.0,0.00043899,2]
[392126323,1761186633702,-1827.37072503,0.00043899,16]
[392126324,1761186633712,-4641.25642844,0.00043899,15]
[392126325,1761186633722,-1200.0,0.000439,16]
[392126326,1761186633731,-1800.0,0.000439,16]
[392126327,1761186633742,-269.1681,0.000439,120]
[392126328,1761186633753,-198.05163,0.0004398,21]
[392126329,1761186633762,-684.71634938,0.0004399,120]
[392126330,1761186633773,-151.0,0.00043996,120]
[392126331,1761186633782,-445.0,0.00043996,120]
[392126332,1761186633791,-500.0,0.00043996,120]
[392126333,1761186633801,-500.0,0.00043996,120]
[392126334,1761186633811,-204.96,0.00043996,120]
[392126335,1761186633821,-638.36,0.00043996,120]
[392126336,1761186633830,-571.52236587,0.00043996,120]
[392126337,1761186633839,-500.0,0.00043996,120]
[392126338,1761186633849,-176.32,0.00043996,120]
[392126339,1761186633859,-500.0,0.00043996,120]
[392126340,1761186633869,-57613.5210255,0.00043997,2]
[392126341,1761186633879,-1000.0,0.00043997,120]
[392126342,1761186633888,-250.0,0.00043997,120]
[392126343,1761186633897,-600.0,0.00043997,120]
[392126344,1761186633906,-520.0,0.00043997,120]
[392126345,1761186633916,-1000.0,0.00043997,120]
[392126346,1761186633926,-600.0,0.00043997,120]
[392126347,1761186633935,-250.0,0.00043997,120]
[392126348,1761186633946,-539.24,0.00043997,120]
[392126349,1761186633955,-500.0,0.00043997,120]
[392126350,1761186633964,-1000.0,0.00043997,120]
[392126351,1761186633974,-600.0,0.00043997,120]
[392126352,1761186633983,-250.0,0.00043997,120]
[392126353,1761186633994,-559.19188,0.00043997,120]
[392126354,1761186634006,-500.0,0.00043997,120]
[392126355,1761186634017,-1000.0,0.00043997,120]
[392126356,1761186634027,-600.0,0.00043997,120]
[392126357,1761186634037,-250.0,0.00043997,120]
[392126358,1761186634047,-579.88197956,0.00043997,120]
[392126359,1761186634056,-500.0,0.00043997,120]
[392126360,1761186634065,-500.0,0.00043997,120]
[392126361,1761186634075,-300.0,0.00043997,120]
[392126362,1761186634084,-600.0,0.00043997,120]
[392126363,1761186634095,-1000.0,0.00043997,120]
[392126364,1761186634105,-500.0,0.00043997,120]
[392126365,1761186634115,-445.75618819,0.00043997,120]
[392126366,1761186634124,-601.3376128,0.00043997,120]
[392126367,1761186634134,-250.0,0.00043997,120]
[392126368,1761186634144,-6888.0,0.00043997,120]
[392126369,1761186634155,-500.0,0.00043997,120]
[392126370,1761186634165,-600.0,0.00043997,120]
[392126371,1761186634174,-1000.0,0.00043997,120]
[392126372,1761186634184,-311.1,0.00043997,120]
[392126373,1761186634194,-500.0,0.00043997,120]
[392126374,1761186634204,-623.58710448,0.00043997,120]
[392126375,1761186634215,-250.0,0.00043997,120]
[392126376,1761186634227,-500.0,0.00043997,120]
[392126377,1761186634236,-7142.856,0.00043997,120]
[392126378,1761186634247,-1000.0,0.00043997,120]
[392126379,1761186634257,-600.0,0.00043997,120]
[392126380,1761186634267,-322.6107,0.00043997,120]
[392126381,1761186634277,-500.0,0.00043997,120]
[392126382,1761186634287,-646.65982734,0.00043997,120]
[392126383,1761186634299,-250.0,0.00043997,120]
[392126384,1761186634309,-500.0,0.00043997,120]
[392126385,1761186634320,-7407.141672,0.00043997,120]
[392126386,1761186634329,-500.0,0.00043997,120]
[392126387,1761186634339,-1000.0,0.00043997,120]
[392126388,1761186634349,-600.0,0.00043997,120]
[392126389,1761186634359,-334.5472959,0.00043997,120]
[392126390,1761186634368,-670.58624095,0.00043997,120]
[392126391,1761186634380,-500.0,0.00043997,120]
[392126392,1761186634391,-250.0,0.00043997,120]
[392126393,1761186634400,-500.0,0.00043997,120]
[392126394,1761186634411,-7681.20591386,0.00043997,120]
[392126395,1761186634421,-500.0,0.00043997,120]
[392126396,1761186634430,-600.0,0.00043997,120]
[392126397,1761186634441,-1000.0,0.00043997,120]
[392126398,1761186634452,-346.92554585,0.00043997,120]
[392126399,1761186634463,-695.39793187,0.00043997,120]
[392126400,1761186634475,-500.0,0.00043997,120]
[392126401,1761186634484,-250.0,0.00043997,120]
[392126402,1761186634494,-500.0,0.00043997,120]
[392126403,1761186634503,-7965.41053268,0.00043997,120]
[392126404,1761186634515,-1000.0,0.00043997,120]
[392126405,1761186634525,-600.0,0.00043997,120]
[392126406,1761186634535,-261.83332767,0.00043997,120]
[392126407,1761186634545,-500.0,0.00043997,120]
[392126408,1761186634555,-721.12765535,0.00043997,120]
[392126409,1761186634565,-500.0,0.00043997,120]
[392126410,1761186634574,-250.0,0.00043997,120]
[392126411,1761186634583,-500.0,0.00043997,120]
[392126412,1761186634592,-151.0,0.00043997,120]
[392126413,1761186634602,-8260.13072239,0.00043997,120]
[392126414,1761186634611,-600.0,0.00043997,120]
[392126415,1761186634620,-1000.0,0.00043997,120]
[392126416,1761186634629,-500.0,0.00043997,120]
[392126417,1761186634640,-747.8093786,0.00043997,120]
[392126418,1761186634651,-500.0,0.00043997,120]
[392126419,1761186634662,-250.0,0.00043997,120]
[392126420,1761186634673,-500.0,0.00043997,120]
[392126421,1761186634683,-151.0,0.00043997,120]
[392126422,1761186634693,-8565.75555911,0.00043997,120]
[392126423,1761186634706,-1000.0,0.00043997,120]
[392126424,1761186634716,-600.0,0.00043997,120]
[392126425,1761186634726,-500.0,0.00043997,120]
[392126426,1761186634735,-775.47832561,0.00043997,120]
[392126427,1761186634747,-500.0,0.00043997,120]
[392126428,1761186634756,-250.0,0.00043997,120]
[392126429,1761186634766,-500.0,0.00043997,120]
[392126430,1761186634775,-213.27961803,0.00043997,120]
[392126431,1761186634787,-8882.6885148,0.00043997,120]
[392126432,1761186634797,-1000.0,0.00043997,120]
[392126433,1761186634807,-600.0,0.00043997,120]
[392126434,1761186634816,-500.0,0.00043997,120]
[392126435,1761186634825,-289.75384376,0.00043997,120]
[392126436,1761186634835,-640.83063736,0.00043997,120]
[392126437,1761186634844,-312.87401857,0.00043997,120]
[392126438,1761186634853,-267.5650284,0.00043997,120]
[392126439,1761186634862,-9211.34798985,0.00043997,120]
[392126440,1761186634871,-600.0,0.00043997,120]
[392126441,1761186634881,-500.0,0.00043997,120]
[392126442,1761186634890,-306.97941653,0.00043997,120]
[392126443,1761186634899,-9552.16786547,0.00043997,120]
[392126444,1761186634909,-616.87318177,0.00043997,120]
[392126445,1761186634918,-250.0,0.00043997,120]
[392126446,1761186634929,-500.0,0.00043997,120]
[392126447,1761186634939,-9905.5980765,0.00043997,120]
[392126448,1761186634948,-250.0,0.00043997,120]
[392126449,1761186634958,-500.0,0.00043997,120]
[392126450,1761186634967,-1422.06941774,0.00043997,120]
[392126451,1761186634977,-500.0,0.00043997,120]
[392126452,1761186634987,-250.0,0.00043997,120]
[392126453,1761186634996,-500.0,0.00043997,120]
[392126454,1761186635006,-250.0,0.00043997,120]
[392126455,1761186635015,-250.0,0.00043997,120]
[392126456,1761186635024,-500.0,0.00043997,120]
[392126457,1761186635033,-1000.0,0.00043997,120]
[392126458,1761186635043,-250.0,0.00043997,120]
[392126459,1761186635052,-500.0,0.00043997,120]
[392126460,1761186635062,-1000.0,0.00043997,120]
[392126461,1761186635071,-500.0,0.00043997,120]
[392126462,1761186635080,-1000.0,0.00043997,120]
[392126463,1761186635090,-500.0,0.00043997,120]
[392126464,1761186635099,-1000.0,0.00043997,120]
[392126465,1761186635109,-1000.0,0.00043997,120]
[392126466,1761186635118,-500.0,0.00043997,120]
[392126467,1761186635128,-1000.0,0.00043997,120]
[392126468,1761186635137,-151.0,0.00043997,120]
[392126469,1761186635146,-151.0,0.00043997,120]
[392126470,1761186635156,-1000.0,0.00043997,120]
[392126471,1761186635164,-151.0,0.00043997,120]
[392126472,1761186635172,-156.587,0.00043997,120]
[392126473,1761186635181,-1000.0,0.00043997,120]
[392126474,1761186635190,-151.0,0.00043997,120]
[392126475,1761186635199,-162.380719,0.00043997,120]
[392126476,1761186635209,-1000.0,0.00043997,120]
[392126477,1761186635218,-250.0,0.00043997,120]
[392126478,1761186635228,-151.0,0.00043997,120]
[392126479,1761186635237,-168.3888056,0.00043997,120]
[392126480,1761186635246,-1000.0,0.00043997,120]
[392126481,1761186635255,-250.0,0.00043997,120]
[392126482,1761186635265,-151.0,0.00043997,120]
[392126483,1761186635275,-174.61919141,0.00043997,120]
[392126484,1761186635285,-1000.0,0.00043997,120]
[392126485,1761186635295,-250.0,0.00043997,120]
[392126486,1761186635304,-151.0,0.00043997,120]
[392126487,1761186635315,-181.35482571,0.00043997,120]
[392126488,1761186635324,-1000.0,0.00043997,120]
[392126489,1761186635334,-209.2023078,0.00043997,120]
[392126490,1761186635343,-250.0,0.00043997,120]
[392126491,1761186635353,-1000.0,0.00043997,120]
[392126492,1761186635362,-250.0,0.00043997,120]
[392126493,1761186635370,-250.0,0.00043997,120]
[392126494,1761186635378,-250.0,0.00043997,120]
[392126495,1761186635387,-1000.0,0.00043997,120]
[392126496,1761186635396,-250.0,0.00043997,120]
[392126497,1761186635406,-250.0,0.00043997,120]
[392126498,1761186635417,-1000.0,0.00043997,120]
[392126499,1761186635426,-250.0,0.00043997,120]
[392126500,1761186635435,-1000.0,0.00043997,120]
[392126501,1761186635444,-250.0,0.00043997,120]
[392126502,1761186635454,-1000.0,0.00043997,120]
[392126503,1761186635463,-250.0,0.00043997,120]
[392126504,1761186635474,-1000.0,0.00043997,120]
[392126505,1761186635484,-500.0,0.00043999,120]
[392126506,1761186635493,-500.0,0.00043999,120]
[392126507,1761186635502,-241.0079443,0.00043999,120]
[392126508,1761186635512,-500.0,0.00043999,120]
[392126509,1761186635521,-500.0,0.00043999,120]
[392126510,1761186635530,-500.0,0.00043999,60]
[392126511,1761186635538,-500.0,0.00043999,120]
[392126512,1761186635546,-500.0,0.00043999,120]
[392126513,1761186635555,-500.0,0.00043999,120]
[392126514,1761186635563,-278.78959016,0.00043999,120]
[392126515,1761186635571,-500.0,0.00043999,120]
[392126516,1761186635579,-500.0,0.00043999,30]
[392126517,1761186635589,-405.97863039,0.00043999,120]
[392126518,1761186635598,-465.9237569,0.00043999,120]
[392126519,1761186635607,-218.57747857,0.00043999,120]
[392126520,1761186635615,-500.0,0.00043999,120]
[392126521,1761186635624,-500.0,0.00043999,120]
[392126522,1761186635632,-200.0,0.00043999,18]
[392126523,1761186635640,-293.19711071,0.00043999,18]
[392126524,1761186635649,-500.0,0.00043999,120]
[392126525,1761186635658,-500.0,0.00043999,120]
[392126526,1761186635666,-500.0,0.00043999,120]
[392126527,1761186635674,-500.0,0.00043999,120]
[392126528,1761186635682,-500.0,0.00043999,120]
[392126529,1761186635690,-243.12,0.00043999,7]
[392126530,1761186635699,-500.0,0.00043999,120]
[392126531,1761186635709,-500.0,0.00043999,120]
[392126532,1761186635718,-500.0,0.00043999,120]
[392126533,1761186635727,-500.0,0.00043999,120]
[392126534,1761186635736,-500.0,0.00043999,12]
[392126535,1761186635745,-322.55,0.00043999,12]
[392126536,1761186635753,-561.02,0.00043999,120]
[392126537,1761186635762,-561.02,0.00043999,120]
[392126538,1761186635771,-300.0,0.00043999,120]
[392126539,1761186635779,-500.0,0.00043999,120]
[392126540,1761186635787,-500.0,0.00043999,120]
[392126541,1761186635797,-217.55884767,0.00043999,120]
[392126542,1761186635805,-277.30895591,0.00043999,120]
[392126543,1761186635814,-396.09300119,0.00043999,120]
[392126544,1761186635823,-412.35507319,0.00043999,120]
[392126545,1761186635831,-500.0,0.00043999,120]
[392126546,1761186635841,-577.99404922,0.00043999,120]
[392126547,1761186635850,-210.61637647,0.00043999,120]
[392126548,1761186635859,-556.01852617,0.00043999,120]
[392126549,1761186635867,-500.0,0.00043999,120]
[392126550,1761186635876,-500.0,0.00043999,120]
[392126551,1761186635886,-214.68130474,0.00043999,120]
[392126552,1761186635894,-528.82864253,0.00043999,120]
[392126553,1761186635903,-1622.04,0.00043999,2]
[392126554,1761186635913,-1622.04,0.00043999,2]
[392126555,1761186635921,-500.0,0.00043999,120]
[392126556,1761186635930,-500.0,0.00043999,120]
[392126557,1761186635938,-200.0,0.00043999,18]
[392126558,1761186636076,-200.0,0.00043999,18]
[392126559,1761186636086,-200.0,0.00043999,18]
[392126560,1761186636094,-500.0,0.00043999,120]
[392126561,1761186636104,-500.0,0.00043999,120]
[392126562,1761186636112,-500.0,0.00043999,120]
[392126563,1761186636121,-198.05163,0.00043999,21]
[392126564,1761186636130,-500.0,0.00043999,18]
[392126565,1761186636138,-500.0,0.00043999,18]
[392126566,1761186636146,-517.84689922,0.00043999,18]
[392126567,1761186636154,-500.0,0.00043999,2]
[392126568,1761186636163,-500.0,0.00043999,2]
[392126569,1761186636171,-500.0,0.00043999,120]
[392126570,1761186636179,-500.0,0.00043999,120]
[392126571,1761186636187,-155.25634,0.00043999,120]
[392126572,1761186636195,-164.619103,0.00043999,120]
[392126573,1761186636203,-151.0,0.00043999,120]
[392126574,1761186636211,-151.0,0.00043999,120]
[392126575,1761186636219,-185.34056,0.00043999,120]
[392126576,1761186636227,-464.684128,0.00043999,30]
[392126577,1761186636235,-464.684128,0.00043999,30]
[392126578,1761186636243,-182.88353,0.00043999,120]
[392126579,1761186636252,-464.684128,0.00043999,30]
[392126580,1761186636260,-464.684128,0.00043999,30]
[392126581,1761186636268,-154.386906,0.00043999,120]
[392126582,1761186636276,-500.0,0.00043999,120]
[392126583,1761186636284,-300.34,0.00043999,120]
[392126584,1761186636292,-500.0,0.00043999,120]
[392126585,1761186636301,-500.0,0.00043999,120]
[392126586,1761186636310,-500.0,0.00043999,120]
[392126587,1761186636318,-500.0,0.00043999,120]
[392126588,1761186636327,-500.0,0.00043999,120]
[392126589,1761186636335,-500.0,0.00043999,120]
[392126590,1761186636344,-231.79178835,0.00043999,2]
[392126591,1761186636352,-500.0,0.00043999,120]
[392126592,1761186636361,-207.6571963,0.00043999,120]
[392126593,1761186636369,-2238.86,0.00044,7]
[392126594,1761186636377,-2238.86,0.00044,7]
[392126595,1761186636386,-2238.86,0.00044,7]
[392126596,1761186636394,-2238.86,0.00044,7]
[392126597,1761186636402,-140266.29134917,0.00044,2]
[392126598,1761186636415,-5558.89571289,0.00044,2]
[392126599,1761186636425,-1250.04837795,0.00044,2]
[392126600,1761186636435,-369.152992,0.00044,2]
[392126601,1761186636445,-3476.90199974,0.00044,2]
[392126602,1761186636456,-534.3065441,0.00044,2]
[392126603,1761186636466,-1605.89447669,0.00044,2]
[392126604,1761186636484,-18727.30510712,0.00044,2]
[392126605,1761186636494,-776.22190606,0.00044,2]
[392126606,1761186636503,-3631.7649521,0.00044,2]
[392126607,1761186636515,-324.27327818,0.00044,2]
[392126608,1761186636526,-253.75974854,0.00044,2]
[392126609,1761186636537,-5261.60667368,0.00044,2]
[392126610,1761186637372,-335.88267554,0.00032231,2]
[392126611,1761186637382,-3412.0,0.00041189,2]
[392126612,1761186637392,-161.67222332,0.0004322,10]
[392126613,1761186637402,-500.0,0.0004342,31]
[392126614,1761186637411,-236.46268661,0.0004342,31]
[392126615,1761186637420,-196.75158698,0.0004342,31]
[392126616,1761186637431,-326.67405658,0.0004342,31]
[392126617,1761186637441,-250.0,0.00043997,120]
[392126618,1761186637451,-1000.0,0.00043997,120]
[392126619,1761186637461,-250.0,0.00043997,120]
[392126620,1761186637471,-1000.0,0.00043997,120]
[392126621,1761186637480,-250.0,0.00043997,120]
[392126622,1761186637490,-250.0,0.00043997,120]
[392126623,1761186637501,-250.0,0.00043997,120]
[392126624,1761186637511,-250.0,0.00043997,120]
[392126625,1761186637521,-250.0,0.00043997,120]
[392126626,1761186637531,-250.0,0.00043997,120]
[392126627,1761186637541,-11475.55677097,0.00044,2]
[392126628,1761186637588,-2798.75877319,0.00044,2]
[392126629,1761186637602,-35265.51597147,0.00044,2]
[392126636,1761186637917,-110000.00000001,0.00044,2]
[392126647,1761186639431,-305.55524937,0.00032231,2]
[392126648,1761186639441,-103.95679878,0.00043997,120]
[392126649,1761186639538,-396.04320122,0.00043997,120]
[392126650,1761186639548,-500.0,0.00043997,120]
[392126651,1761186639557,-100013.84870185,0.00044,2]
[392126652,1761186639566,-180.0,0.00044,2]
[392126653,1761186639575,-3000.0,0.00044,120]
[392126654,1761186639584,-2000.0,0.00044,120]
[392126655,1761186639593,-2000.0,0.00044,120]
[392126656,1761186639602,-5000.0,0.00044,120]
[392126657,1761186639611,-246.1300268,0.00044,2]
[392126658,1761186639621,-244.57,0.00044,120]
[392126659,1761186639630,-580.88154061,0.00044,120]
[392126660,1761186639641,-151.0,0.00044,2]
[392126661,1761186639651,-151.0,0.00044,120]
[392126662,1761186639660,-290.285669,0.00044,120]
[392126663,1761186639670,-396.0,0.00044,120]
[392126664,1761186639679,-160.204253,0.00044,120]
[392126665,1761186639688,-151.0,0.00044,120]
[392126666,1761186639697,-151.0,0.00044,120]
[392126667,1761186639706,-151.0,0.00044,120]
[392126668,1761186639716,-154.795845,0.00044,120]
[392126669,1761186639725,-151.0,0.00044,120]
[392126670,1761186639735,-151.0,0.00044,120]
[392126671,1761186639745,-151.0,0.00044,120]
[392126672,1761186639754,-151.0,0.00044,120]
[392126673,1761186639763,-151.0,0.00044,120]
[392126674,1761186639773,-151.0,0.00044,120]
[392126675,1761186639782,-151.0,0.00044,60]
[392126676,1761186639791,-151.0,0.00044,120]
[392126677,1761186639800,-174.03448,0.00044,120]
[392126678,1761186639809,-165.604717,0.00044,120]
[392126679,1761186639819,-151.0,0.00044,120]
[392126680,1761186639828,-156.327152,0.00044,15]
[392126681,1761186639838,-151.0,0.00044,120]
[392126682,1761186639847,-174.300814,0.00044,120]
[392126683,1761186639856,-153.780163,0.00044,120]
[392126684,1761186639865,-151.0,0.00044,120]
[392126685,1761186639874,-151.0,0.00044,120]
[392126686,1761186639883,-151.0,0.00044,120]
[392126687,1761186639892,-151.0,0.00044,120]
[392126688,1761186639901,-155.372845,0.00044,120]
[392126689,1761186639911,-151.0,0.00044,120]
[392126690,1761186639925,-151.0,0.00044,120]
[392126691,1761186639936,-151.0,0.00044,120]
[392126692,1761186639947,-156.208561,0.00044,120]
[392126693,1761186639957,-257.322866,0.00044,30]
[392126694,1761186639966,-464.684128,0.00044,30]
[392126695,1761186639975,-464.684128,0.00044,30]
[392126696,1761186639984,-464.684128,0.00044,30]
[392126697,1761186639994,-464.684128,0.00044,30]
[392126698,1761186640004,-151.0,0.00044,120]
[392126699,1761186640014,-172.89102,0.00044,120]
[392126700,1761186640024,-151.0,0.00044,120]
[392126701,1761186640034,-151.0,0.00044,120]
[392126702,1761186640044,-153.519569,0.00044,120]
[392126703,1761186640053,-151.0,0.00044,120]
[392126704,1761186640063,-174.508813,0.00044,120]
[392126705,1761186640072,-153.148818,0.00044,120]
[392126706,1761186640081,-160.114314,0.00044,120]
[392126707,1761186640091,-151.929852,0.00044,120]
[392126708,1761186640101,-160.114314,0.00044,120]
[392126709,1761186640110,-4641.25642842,0.0004401,15]
[392126710,1761186640120,-1844.15351118,0.00044023,15]
[392126711,1761186640131,-365.0,0.00044033,120]
[392126712,1761186640140,-500.0,0.00044041,30]
[392126713,1761186640150,-913.38,0.00044041,30]
[392126714,1761186640159,-483.0,0.0004406,120]
[392126715,1761186640169,-702.0,0.000441,30]
[392126716,1761186640179,-769.6952983,0.00044103,120]
[392126717,1761186640189,-4641.25642842,0.00044121,15]
[392126718,1761186640201,-646.0,0.00044126,7]
[392126719,1761186640210,-557.0,0.00044189,2]
[392126720,1761186640219,-1157.436,0.00044189,2]
[392126721,1761186640230,-1844.15351118,0.00044199,15]
[392126722,1761186640240,-504.9119967,0.000442,120]
[392126723,1761186640250,-198.05162,0.0004423,22]
[392126724,1761186640261,-4641.25642842,0.00044233,15]
[392126725,1761186640270,-243.12,0.00044273,7]
[392126726,1761186640280,-2500.0,0.000443,16]
[392126727,1761186640291,-3700.0,0.000443,16]
[392126728,1761186640300,-500.0,0.00044315,30]
[392126729,1761186640311,-5888.0,0.00044343,2]
[392126730,1761186640321,-4641.25642842,0.00044344,15]
[392126731,1761186640331,-350.0,0.00044351,2]
[392126732,1761186640341,-166.66,0.00044368,30]
[392126733,1761186640350,-1844.15351118,0.00044374,15]
[392126734,1761186640359,-3700.0,0.000444,16]
[392126735,1761186640369,-5500.0,0.000444,16]
[392126736,1761186640378,-178.82,0.00044411,14]
[392126737,1761186640387,-652.51689,0.00044444,120]
[392126738,1761186640396,-4641.25642842,0.00044455,15]
[392126739,1761186640405,-198.05163,0.0004448,23]
[392126740,1761186640414,-500.0,0.00044499,120]
[392126741,1761186640423,-5000.0,0.000445,120]
[392126742,1761186640432,-6000.0,0.000445,120]
[392126743,1761186640441,-5000.0,0.000445,16]
[392126744,1761186640450,-7400.0,0.000445,16]
[392126745,1761186640459,-243.12,0.00044547,7]
[392126746,1761186640469,-1844.15351118,0.00044549,15]
[392126747,1761186640478,-702.0,0.0004455,30]
[392126748,1761186640488,-4641.25642842,0.00044566,15]
[392126749,1761186640497,-500.0,0.00044589,30]
[392126750,1761186640507,-2119.51827458,0.000446,30]
[392126751,1761186640519,-6300.0,0.000446,16]
[392126752,1761186640530,-9200.0,0.000446,16]
[392126753,1761186640539,-203.03290491,0.00044633,28]
[392126754,1761186640549,-238.0,0.00044646,2]
[392126755,1761186640559,-1263.0,0.00044665,7]
[392126756,1761186640569,-4641.25642842,0.00044678,15]
[392126757,1761186640578,-1200.0,0.000447,16]
[392126758,1761186640588,-1800.0,0.000447,16]
[392126759,1761186640597,-1844.15351118,0.00044725,15]
[392126760,1761186640607,-1622.04,0.00044774,2]